Cogmind - Beta 9.2 @@@ ROGUE MODE // 2019.12.29 @ 20:47:09 Player: Fleshy Vegetable Bird Result: Destroyed by as-42375 with Assembled Rifle Performance ------------- Evolutions (0) 0 Regions Visited (2) 400 Robots Destroyed (11) 55 Value Destroyed (282) 282 Prototype IDs (0) 0 Alien Tech Used (0) 0 Bonus (0) 0 TOTAL SCORE: 737 Bonus ------- None Cogmind --------- Core Integrity 0/250 Matter 275/300 Energy 100/100 System Corruption 0% Temperature Cool (35) Movement Core (50) Location -10/Mines Parts ------- > --- POWER (1) -------- (None) > --- PROPULSION (2) --- (None) > --- UTILITY (2) ------ Improved Targeting Computer > --- WEAPON (2) ------- Assault Rifle > --- INVENTORY (4) ---- Wheel Wheel Terrain Scan Processor Small Laser Peak State ------------ > --- POWER ------------ Light Nuclear Core > --- PROPULSION ------- Wheel Wheel > --- UTILITY ---------- Small Storage Unit Improved Targeting Computer > --- WEAPON ----------- Particle Gun Assault Rifle > --- INVENTORY -------- Wheel Wheel Terrain Scan Processor Small Laser Mining Laser [Rating: 11] Favorites ----------- Power Light Ion Engine Engine Light Ion Engine Power Core Light Nuclear Core Propulsion Wheel Wheel Wheel Utility Small Storage Unit Storage Small Storage Unit Processor Improved Targeting Computer Weapon Small Laser Energy Gun Small Laser Ballistic Gun Assault Rifle Build | -11 -10 -10 ------- Run | Scr Mat Min Slots Evolved . | . . . Power . | . . . Propulsion . | . . . Utility . | . . . Weapon . | . . . Parts Attached 13 | 7 6 . Power 3 | 1 2 . Engine 2 | 1 1 . Core 1 | . 1 . Reactor . | . . . Propulsion 2 | 2 . . Treads . | . . . Leg . | . . . Wheel 2 | 2 . . Hover . | . . . Flight . | . . . Utility 3 | 1 2 . Device . | . . . Storage 2 | 1 1 . Processor 1 | . 1 . Hackware . | . . . Protection . | . . . Artifact . | . . . Weapon 5 | 3 2 . Energy Gun 3 | 2 1 . Energy Cannon . | . . . Ballistic Gun 2 | 1 1 . Ballistic Cannon . | . . . Launcher . | . . . Special Weapon . | . . . Impact Weapon . | . . . Slashing Weapon . | . . . Piercing Weapon . | . . . Special Melee Weapon . | . . . Unidentified Prototypes . | . . . Parts Lost 6 | . 4 2 Power 2 | . 2 . Propulsion 1 | . . 1 Utility . | . . . Weapon 3 | . 2 1 Highest Loss Streak 3 | . 3 2 Average Slot Usage (%) 88 | . 88 . Engine 10 | . 10 . Wheel 28 | . 28 . Storage 14 | . 14 . Processor 7 | . 7 . Energy Gun 16 | . 16 . Ballistic Gun 9 | . 9 . Naked Turns . | . . . Heaviest Build 18 | 9 18 18 Greatest Support 20 | 20 20 20 Greatest Overweight (x) . | . . . Average Overweight (x) . | . . . Largest Inventory Capacity 8 | 6 8 8 Average Capacity 5 | 5 6 8 Most Carried 6 | 5 6 5 Average Carried 4 | 3 5 5 Final Capacity 8 | 6 8 4 Final Carried 5 | 5 5 4 Class Distribution -------------------- 100% | Mutant Dominant Class ---------------- Mutant | -10/Materials Mutant | -10/Mines Resources | -11 -10 -10 ----------- Run | Scr Mat Min Matter Collected 354 | 270 84 . Remotely . | . . . Salvage Created 416 | 120 296 . Parts 18 | 8 10 . Haulers Intercepted 1 | . 1 . Recyclers Shooed . | . . . Parts Field Recycled . | . . . Retrieved Matter . | . . . Parts Self-Destructed . | . . . Prevented . | . . . Kills | -11 -10 -10 ------- Run | Scr Mat Min Combat Hostiles Destroyed 6 | . 6 . Guns 6 | . 6 . Classes Destroyed 4 | 2 2 . Tunneler 3 | 3 . . Hauler 1 | . 1 . Recycler 1 | 1 . . Grunt 6 | . 6 . Best Kill Streak 4 | 3 4 . Combat Bots Only 4 | . 4 . Max Kills in Single Turn 1 | 1 1 . Gunslinging . | . . . Exploded . | . . . Melee . | . . . Uniques/NPCs Destroyed . | . . . Combat | -11 -10 -10 -------- Run | Scr Mat Min Damage Taken 614 | . 480 134 Core 250 | . 176 74 Absorbed by Shields . | . . . Core Remaining (%) 100 | 100 . . Volleys Fired 40 | 7 33 . Largest 2 | 2 2 . Hottest 85 | 80 85 . Shots Fired 76 | 14 62 . Gun 76 | 14 62 . Cannon . | . . . Launcher . | . . . Special . | . . . Kinetic 23 | . 23 . Thermal 53 | 14 39 . Explosive . | . . . Electromagnetic . | . . . Robot Hit Streak 8 | 2 8 . Robot Miss Streak 4 | 4 2 . Penetration Max . | . . . Secondary Targets . | . . . Shots Hit Robots 46 | 4 42 . Core Hits 20 | 5 15 . Critical Hits . | . . . Critical Kills . | . . . Critical Parts Destroyed . | . . . Melee Attacks . | . . . Impact . | . . . Slashing . | . . . Piercing . | . . . Sneak Attacks . | . . . Combat Hostiles . | . . . Follow-up Attacks . | . . . Damage Inflicted 611 | 62 549 . Guns 611 | 62 549 . Cannons . | . . . Explosions . | . . . Melee . | . . . Ramming . | . . . Kinetic 184 | . 184 . Thermal 427 | 62 365 . Explosive . | . . . Electromagnetic . | . . . Impact . | . . . Slashing . | . . . Piercing . | . . . Highest Corruption . | . . . Average Corruption . | . . . Corruption Purged . | . . . Overload Shots . | . . . Overflow Damage . | . . . Projectiles . | . . . Explosions . | . . . Melee . | . . . Knockbacks . | . . . Impact . | . . . Kinetic . | . . . Secondary . | . . . Self-Inflicted Damage . | . . . Shots . | . . . Rammed . | . . . Targets Rammed . | . . . Kicked . | . . . Crushed . | . . . Highest Temperature 342 | 74 342 35 Average Temperature 113 | 28 130 35 Received Heat Transfer 309 | . 249 60 Effects 3 | . 3 . Interference 2 | . 2 . Matter Decay 1 | . 1 . Siege Activations . | . . . Robots Corrupted . | . . . Combat Hostiles . | . . . Parts Fried . | . . . Impact Corruptions . | . . . Robots Melted . | . . . Combat Hostiles . | . . . Parts Melted 2 | . 2 . Heat Transferred 980 | 150 830 . Parts Sabotaged . | . . . Parts Stolen . | . . . Parts Stripped . | . . . Power Chain Reactions . | . . . Missiles Intercepted . | . . . Alert | -11 -10 -10 ------- Run | Scr Mat Min Peak Influence 210 | 20 210 81 Average Influence 68 | 8 93 71 Maximum Alert Level 1 | . 1 . Low Security (%) 95 | 100 93 100 Level 1 4 | . 6 . Level 2 . | . . . Level 3 . | . . . Level 4 . | . . . Level 5 . | . . . High Security . | . . . Max Security . | . . . Squads Dispatched . | . . . Investigation . | . . . Extermination . | . . . Reinforcement . | . . . Assault . | . . . Garrison . | . . . Intercept . | . . . Construction Impeded . | . . . Haulers Reinforced . | . . . Stealth | -11 -10 -10 --------- Run | Scr Mat Min Distress Signals 1 | . 1 . Communications Jammed . | . . . Distress Signals . | . . . Times Spotted 32 | . 13 19 Peak Tracking Total 20 | . 5 20 Tactical Retreats 1 | . 1 . Traps | -11 -10 -10 ------- Run | Scr Mat Min Traps Triggered 1 | . 1 . Indirectly . | . . . Trap Hack Attempts . | . . . Triggered . | . . . Disarmed . | . . . Reprogrammed . | . . . Reused . | . . . Traps Extracted . | . . . Installed . | . . . Triggered . | . . . Machines | -11 -10 -10 ---------- Run | Scr Mat Min Machines Disabled 1 | . 1 . Max in Single Turn 1 | . 1 . Machines Sabotaged . | . . . Garrisons Compromised . | . . . Overloaded Fab Kills . | . . . Fab Network Shutdowns . | . . . Hacking | -11 -10 -10 --------- Run | Scr Mat Min Machines Accessed 1 | . 1 . Terminals 1 | . 1 . Fabricators . | . . . Repair Stations . | . . . Recycling Units . | . . . Scanalyzers . | . . . Garrison Access . | . . . Total Hacks 2 | . 2 . Successful 2 | . 2 . Failed . | . . . Catastrophic . | . . . Database Lockouts . | . . . Manual 2 | . 2 . Terminals 2 | . 2 . Fabricators . | . . . Repair Stations . | . . . Recycling Units . | . . . Scanalyzers . | . . . Garrison Access . | . . . Terminal Hacks . | . . . Fabricator Hacks . | . . . Repair Station Hacks . | . . . Recycling Unit Hacks . | . . . Scanalyzer . | . . . Garrison Access Hacks . | . . . Unauthorized Hacks 4 | . 4 . Terminals 2 | . 2 . Botnet 1 | . 1 . Operators 1 | . 1 . Fabricators . | . . . Repair Stations . | . . . Recycling Units . | . . . Scanalyzers . | . . . Garrison Access . | . . . Data Cores Recovered . | . . . Used . | . . . Hacking Detections 1 | . 1 . Full Trace Events . | . . . Feedback Events . | . . . Feedback Blocked . | . . . Robot Schematics Acquired . | . . . Robots Built . | . . . Matter . | . . . Time . | . . . Total Robot Build Rating . | . . . Part Schematics Acquired . | . . . Parts Built . | . . . Matter . | . . . Time . | . . . Total Part Build Rating . | . . . Parts Repaired . | . . . Time . | . . . Parts Recycled . | . . . Recycled Matter . | . . . Retrieved Matter . | . . . Retrieved Components . | . . . Parts Scanalyzed . | . . . Part Schematics Acquired . | . . . Parts Damaged . | . . . Bothacking | -11 -10 -10 ------------ Run | Scr Mat Min Used RIF Installer . | . . . Robots Hacked . | . . . Non-combat . | . . . Combat . | . . . Robot Hacks Applied . | . . . Relay Couplers Released . | . . . Robots Rewired . | . . . Allies Hacked . | . . . Hacks Repelled . | . . . Allies | -11 -10 -10 -------- Run | Scr Mat Min Total Allies . | . . . Largest Group . | . . . Highest-Rated Group . | . . . Highest-Rated Ally . | . . . Total Orders . | . . . Ally Attacks . | . . . Total Damage . | . . . Kills . | . . . Allies Corrupted . | . . . Allies Melted . | . . . Intel | -11 -10 -10 ------- Run | Scr Mat Min Robot Analysis Total . | . . . Derelict Logs Recovered . | . . . Drone Launches . | . . . Drone Recoveries . | . . . Exploration | -11 -10 -10 ------------- Run | Scr Mat Min Turns Passed 387 | 113 272 2 Spaces Moved 274 | 83 190 1 Core 9 | 9 . . Treads . | . . . Legs . | . . . Wheels 265 | 74 190 1 Hover . | . . . Flight . | . . . Fastest Speed 50 | 50 80 80 Average Speed 79 | 76 80 80 Slowest Speed 80 | 80 80 80 Overloaded Moves . | . . . Propulsion Burnouts . | . . . Robots Hopped . | . . . Cave-ins Triggered . | . . . Exploration Rate (%) 14 | 5 36 3 Regions Visited 2 Branch Regions 1 Pre-discovered Areas . | . . . Known Exits Taken . | . . . Unknown Exits Taken 2 | 1 1 . Scrap Searched . | . . . Spaces Dug . | . . . Terrain Destroyed . | . . . Melee . | . . . Projectile . | . . . AOE . | . . . Actions | -11 -10 -10 --------- Run | Scr Mat Min Total 368 | 117 247 4 Wait 22 | 10 12 . Move 272 | 82 189 1 Hop . | . . . Pick Up 17 | 11 6 . Fast Attach . | . . . Attach 11 | 6 5 . Detach . | . . . Swap 2 | 1 1 . Drop 4 | . 1 3 Fire 40 | 7 33 . Melee . | . . . Ram . | . . . Kick . | . . . Crush . | . . . Escape Stasis . | . . . Rewire . | . . . Trap . | . . . Miscellaneous . | . . . Route ------- -11/Scrapyard -10/Materials (discovered 2 exits: [*Mat] / [*Min]) -10/Mines History --------- Turn | Location | Event 19 | -11/Scrapyard | Discovered new exit (range 16) 114 | -11/Scrapyard | Entered Materials 233 | -10/Materials | Discovered new exit (range 14) 236 | -10/Materials | Lost 3 parts (1p2w) 306 | -10/Materials | Build established: Mutant 366 | -10/Materials | Core integrity fell below 50% 367 | -10/Materials | Discovered new exit (range 16) 386 | -10/Materials | Entered Mines 387 | -10/Mines | Assembled infested the area 388 | -10/Mines | Core integrity fell below 20% 388 | -10/Mines | Destroyed by as-42375 with Assembled Rifle Last Messages --------------- 00365_ Triggered Explosive Trap. 00365_ An explosion rips through the floor. 00365_ Door malfunctions. 00367_ R-06 Scavenger collects Med. Storage Unit. 00367_ EXIT=FOUND 00370_ K-01 Serf cleans the Machine. 00371_ Acquired Med. Storage Unit. 00373_ Dropped Sml. Storage Unit. 00378_ R-06 Scavenger collects Transport Network Coupler. 00379_ U-05 Engineer builds a Wall. LOCATION=UNKNOWN GOAL=ESCAPE 00387_ ALERT: Infestation in the mines, dispatching Demolisher response squad. 00387_ Wheel destroyed. 00387_ Particle Gun destroyed. 00387_ Dropped Lgt. Nuclear Core. 00388_ Dropped Wheel. 00388_ Dropped Med. Storage Unit. 00388_ T-07 Excavator destroyed. Map ----- +----------------------------------------------------+ | ???????????????????????????????????????????? | | ???????????????????????????????????????????? | | ???????????????????????????????????????????? | | ???????????????????????????????????????????? | | ???????????????????????????????????????????? | | ???????????????????????????????????????????? | | ???????????????????????????????????????????? | | ???????????????????????????????????????????? | | ???????????????????????????????????????????? | | ???????????????????????????????????????????? | | ???????????????????????????????????????????? | | ???????????????????????????????????????????? | | ???????????????????????????????????????????? | | ???????????????????????????????????????????? | | ???????????????????????????????????????????? | | ???????????????????????????????????????????? | | ???????????????????????????????????????????? | | ???????????????????????????????????????????? | | ???????????????????????????????????????????? | | ???????????????????????????????????????????? | | ????????????????????###????????????????????? | | ???????????????????## #?????????##????????? | | ???????????????????# t ??????? #????????? | | ???????????????????# #####a #????????? | | ????????????????????# aaaaaaa #?????????? | | ?????????????????????#*%a@aaaaa #??????????? | | ?????????????????????# !a##aaa ##??????????? | | ?????????????????????## ##???a##???????????? | | ??????????????????????##???????????????????? | | ???????????????????????????????????????????? | | ???????????????????????????????????????????? | | ???????????????????????????????????????????? | | ???????????????????????????????????????????? | | ???????????????????????????????????????????? | | ???????????????????????????????????????????? | | ???????????????????????????????????????????? | | ???????????????????????????????????????????? | | ???????????????????????????????????????????? | | | | | | | | | | | | | | | | | | | | | | | | | +----------------------------------------------------+ Best States ------------- Heat Dissipation 25 Energy Generation 14 Energy Capacity 250 Matter Stores 300 Matter Capacity 300 Sight Range 16 Terrain Scan Density 10 Evasion (%) 50 Targeting Accuracy 6 Item Schematics ----------------- None Robot Schematics ------------------ None Fabricated ------------ Nothing Alien Tech Used ----------------- None Achievements -------------- None Challenges ------------ None Game ------ Seed NetworkImprinterFilter Manual? 0 Play Time 00:03:10 Cumulative 289.7 hours Start 2019.12.29 @ 20:44:11 End 2019.12.29 @ 20:47:09 Sessions 1 Manual Loads 0 Difficulty Rogue Special Mode None Game No. 330 Rogue 330 Adventurer 0 Explorer 0 Win Type - Total 5 Types 2/1/1/1/0/0/0 Lore% 67 Gallery% 85 Achievement% 64 Wizard Run 0 Options --------- ASCII 0 Keyboard 0 Movement Numpad Keybinds 0 Fullscreen 1 Font 16/Terminus Map View 75x55 Tactical HUD 1 Map Filters NONE Filters NONE Steam 1 RUN: 692e78a9-84d2-4aac-bd76-6840bd74d69f